fUST/lending_fUST_20241103
["ID","MTS","AMOUNT","RATE_DAILY","PERIOD"]
[341196697,1730609438698,-184.31186333,0.00032601,2]
[341196698,1730609438707,-169.94486156,0.00032601,2]
[341196699,1730609438716,-500.0,0.00032601,2]
[341196700,1730609438726,-495.0387394,0.00032601,2]
[341196701,1730609438735,-500.0,0.00032602,4]
[341196702,1730609438744,-706.36,0.00032602,3]
[341196703,1730609438754,-500.0,0.00032876,4]
[341196704,1730609438763,-706.36,0.00032876,3]
[341196705,1730609438772,-500.0,0.0003315,4]
[341196706,1730609438781,-706.36,0.0003315,3]
[341196707,1730609438791,-1942.60965682,0.0003323,3]
[341196715,1730609441415,-15849.75578068,0.0003323,3]
[341196716,1730609441424,-192.04966527,0.0003323,7]
[341196717,1730609441434,-500.0,0.00033424,4]
[341196718,1730609441443,-706.36,0.00033424,3]
[341196719,1730609441453,-973.33897276,0.00033435,2]
[341196720,1730609441462,-1000.0,0.00033445,2]
[341196721,1730609441471,-2205.87,0.000335,2]
[341196722,1730609441481,-8526.87,0.00033525,10]
[341196723,1730609441490,-10232.25,0.00033535,10]
[341196724,1730609441499,-200.2,0.00033545,2]
[341196725,1730609441512,-1048.04051669,0.00033545,2]
[341196726,1730609441523,-1445.40555509,0.00033545,7]
[341196727,1730609441533,-21811.66688646,0.00033545,10]
[341196749,1730609443521,-184.73344011,0.00033545,10]
[341196750,1730609448830,206.62821145,0.00024558,2]
[341196788,1730610449102,-150.84293585,0.00024658,2]
[341196789,1730610449122,-122.83929858,0.00026,2]
[341196791,1730610563141,-697.94070142,0.00026,2]
[341196792,1730610563166,-500.0,0.00027397,2]
[341196793,1730610563189,-300.0,0.00028371,2]
[341196794,1730610563214,-300.0,0.00028371,2]
[341196795,1730610563239,-1499.64007909,0.00028372,2]
[341196796,1730610572089,-8680.43737661,0.00028372,2]
[341196864,1730610638760,-297.78220597,0.0002686,120]
[341196865,1730610638770,-300.0,0.00028371,2]
[341196866,1730610638781,-14089.87356579,0.00028372,2]
[341196869,1730610640653,-630.04897851,0.00028372,2]
[341196870,1730610640664,-161.3260333,0.00028506,2]
[341196871,1730610640673,-152.0,0.00029135,2]
[341196872,1730610640683,-150.0,0.00029962,2]
[341196873,1730610640692,-500.0,0.00030136,2]
[341196874,1730610640701,-1523.16149403,0.00030376,2]
[341196875,1730610640712,-206.38609229,0.000305,120]
[341196876,1730610640722,-636.92,0.00030718,3]
[341196877,1730610640730,-500.0,0.00030718,4]
[341196878,1730610640742,-500.0,0.00030718,4]
[341196879,1730610640753,-500.0,0.00030718,4]
[341196880,1730610640874,-636.92,0.00030992,3]
[341196881,1730610640887,-500.0,0.00030992,4]
[341196882,1730610640898,-500.0,0.00030992,4]
[341196883,1730610640908,-636.92,0.00031266,3]
[341196884,1730610640920,-500.0,0.00031266,4]
[341196885,1730610640930,-490.57234141,0.00031266,4]
[341196886,1730610640941,-636.92,0.0003154,3]
[341196887,1730610640951,-500.0,0.0003154,4]
[341196888,1730610640961,-636.92,0.00031814,3]
[341196889,1730610640970,-500.0,0.00031814,4]
[341196890,1730610640981,-636.92,0.00032088,3]
[341196891,1730610640991,-500.0,0.00032088,4]
[341196892,1730610641000,-636.92,0.00032362,3]
[341196893,1730610641011,-365.20754114,0.00032362,4]
[341196894,1730610641021,-636.92,0.00032636,3]
[341196895,1730610641031,-500.0,0.00032876,7]
[341196896,1730610641047,-500.0,0.00032876,2]
[341196897,1730610641056,-195.233833,0.00032877,120]
[341196898,1730610641065,-636.92,0.0003291,3]
[341196899,1730610641075,-155.05135127,0.00033034,2]
[341196900,1730610641087,-851.67160113,0.00033084,2]
[341196901,1730610641097,-636.92,0.00033184,3]
[341196902,1730610641107,-1000.0,0.00033434,2]
[341196903,1730610641117,-2285.55389407,0.00033445,2]
[341196936,1730610646636,-7516.02,0.00033445,2]
[341196939,1730610646649,-300.0,0.00033445,2]
[341196951,1730611135024,167.230492,0.00013973,2]
[341196976,1730611724704,5008.28322041,0.0002,120]
[341196980,1730611755141,-300.0,0.00021999,2]
[341196981,1730611755164,-300.0,0.00021999,2]
[341196982,1730611755186,-931.97979512,0.00022,30]
[341196984,1730611760165,-45671.3494756,0.00022,30]
[341196985,1730611762163,-491101.61795631,0.00022,30]
[341197030,1730612720766,233.6496447,0.0002012,2]
[341197034,1730612835143,-604.9020396,0.0002058,2]
[341197035,1730612835165,-170.50244,0.00020622,2]
[341197036,1730612835189,-226.815889,0.00020831,2]
[341197037,1730612835210,-300.0,0.00020978,2]
[341197038,1730612835231,-24900.0,0.00020979,2]
[341197039,1730612835252,-170.50244,0.00021159,2]
[341197040,1730612835280,-745.21265105,0.00021596,2]
[341197041,1730612835301,-170.50244,0.00021696,2]
[341197042,1730612835322,-8897.14948252,0.00021814,2]
[341197043,1730612835345,-1866.03275225,0.00021917,2]
[341197044,1730612835366,-168.70776,0.00021918,2]
[341197045,1730612835386,-170.30388578,0.00022,2]
[341197046,1730612835406,-4138.20291108,0.00022,30]
[341197047,1730612966092,-300.0,0.00021999,2]
[341197048,1730612966114,-1510.38771308,0.00022,30]
[341197049,1730612973204,-84691.11889293,0.00022,30]
[341197050,1730612973227,-226.815889,0.00022201,2]
[341197051,1730612973249,-420.0,0.00023906,2]
[341197052,1730612973272,-150.84293585,0.00024658,2]
[341197053,1730612973294,-20989.08982197,0.00025,2]
[341197054,1730612973315,-194.0,0.00025,2]
[341197055,1730612973337,-195.0,0.0002589,2]
[341197056,1730612973358,-311.0,0.00025977,2]
[341197057,1730612973384,-500.0,0.00027397,2]
[341197058,1730612973406,-153.0,0.00028521,2]
[341197059,1730612973429,-153.0,0.00028521,2]
[341197060,1730612973450,-153.0,0.00028521,2]
[341197061,1730612973472,-247.0,0.0003,2]
[341197062,1730612973495,-500.0,0.00030136,4]
[341197063,1730612973516,-500.0,0.00030136,2]
[341197064,1730612973536,-500.0,0.00030136,4]
[341197065,1730612973558,-500.0,0.00030136,4]
[341197066,1730612973581,-11181.69,0.00030136,3]
[341197067,1730612973610,-500.0,0.00030136,4]
[341197068,1730612973639,-1051.99,0.00030136,4]
[341197069,1730612973664,-500.0,0.00030136,4]
[341197070,1730612973687,-500.0,0.00030136,4]
[341197071,1730612973711,-500.0,0.00030136,4]
[341197072,1730612973737,-1756.08,0.00030136,4]
[341197073,1730612973759,-383.88749793,0.00030409,2]
[341197074,1730612973780,-500.0,0.0003041,4]
[341197075,1730612973802,-500.0,0.0003041,4]
[341197076,1730612973823,-500.0,0.0003041,4]
[341197077,1730612973846,-11181.69,0.0003041,3]
[341197078,1730612973870,-500.0,0.0003041,4]
[341197079,1730612973893,-1051.99,0.0003041,4]
[341197080,1730612973915,-500.0,0.0003041,4]
[341197081,1730612973937,-500.0,0.0003041,4]
[341197082,1730612973960,-500.0,0.0003041,4]
[341197083,1730612973985,-1756.08,0.0003041,4]
[341197084,1730612974007,-1517.81861954,0.00030674,10]
[341197112,1730613032173,-1471.34136598,0.00028349,2]
[341197113,1730613032296,-4725.42607681,0.00028349,2]
[341197121,1730613038231,-7403.91366649,0.00028349,2]
[341197150,1730614145203,-300.0,0.00027166,2]
[341197151,1730614145224,-300.0,0.00027166,2]
[341197152,1730614145246,-24900.0,0.00027167,2]
[341197153,1730614145266,-562.9721589,0.00027234,2]
[341197154,1730614145286,-227.4782546,0.00027318,2]
[341197155,1730614145308,-500.0,0.00027397,2]
[341197156,1730614145328,-167.501039,0.00027656,2]
[341197157,1730614145351,-167.501039,0.00027702,2]
[341197158,1730614145374,-167.501039,0.00027748,2]
[341197159,1730614145395,-167.501039,0.00027794,2]
[341197160,1730614145415,-206.62821145,0.000299,2]
[341197161,1730614145435,-652.06106966,0.000299,2]
[341197162,1730614145457,-16248.72054753,0.0003,30]
[341197163,1730614145477,-151.0,0.0003,120]
[341197164,1730614145497,-170.30388579,0.0003,7]
[341197165,1730614145517,-500.0,0.00030136,2]
[341197166,1730614145537,-500.0,0.00030136,4]
[341197167,1730614145560,-500.0,0.00030136,4]
[341197168,1730614145589,-1609.74,0.00030136,4]
[341197169,1730614145611,-487.51185297,0.00030136,4]
[341197243,1730614243262,-12.48814703,0.00030136,4]
[341197245,1730614243272,-55.72343477,0.00030136,4]
[341197276,1730614935260,376.68,0.0003341,30]
[341197279,1730615179316,199.0,0.00024,60]
[341197290,1730615334113,-3000.0,0.00022,30]
[341197291,1730615360185,-247746.59817407,0.00022,30]
[341197292,1730615360217,-2792.37149398,0.00025852,2]
[341197293,1730615360241,-178.200206,0.00027684,2]
[341197294,1730615360267,-19447.2025791,0.00028175,2]
[341197295,1730615360293,-182.4487324,0.00028259,2]
[341197296,1730615360318,-202.622063,0.00028366,2]
[341197297,1730615360343,-226.0085,0.0003,2]
[341197298,1730615360366,-570.5534359,0.00030035,2]
[341197299,1730615360391,-159.81,0.000301,25]
[341197300,1730615360414,-3000.0,0.000301,2]
[341197301,1730615360435,-3000.0,0.0003011,2]
[341197302,1730615360459,-5850.0,0.0003012,2]
[341197303,1730615360486,-500.0,0.00030135,2]
[341197304,1730615360510,-226.51173928,0.00030135,2]
[341197305,1730615360538,-500.0,0.00030135,2]
[341197306,1730615360565,-500.0,0.00030135,2]
[341197307,1730615360589,-500.60086806,0.00030135,2]
[341197308,1730615360609,-502.53906227,0.00030135,2]
[341197309,1730615360630,-500.0,0.00030135,2]
[341197310,1730615360652,-500.0,0.00030135,2]
[341197311,1730615360673,-500.0,0.00030136,4]
[341197312,1730615360696,-500.0,0.00030136,4]
[341197313,1730615360719,-1542.67,0.00030136,4]
[341197314,1730615360741,-500.0,0.00030136,4]
[341197315,1730615360764,-6291.5672322,0.00030136,3]
[341197340,1730615438411,-310.04656523,0.00030136,4]
[341197341,1730615438431,-583.31977336,0.00030136,4]
[341197342,1730615438442,-513.82191816,0.00030136,4]
[341197343,1730615438452,-964.33,0.00030136,4]
[341197344,1730615438462,-500.0,0.00030136,4]
[341197345,1730615438471,-500.0,0.00030136,4]
[341197346,1730615438481,-500.0,0.00030136,4]
[341197347,1730615438490,-1478.39,0.00030136,4]
[341197348,1730615438499,-500.0,0.00030136,4]
[341197349,1730615438510,-14479.93,0.00030136,3]
[341197350,1730615438519,-500.0,0.00030136,4]
[341197351,1730615438529,-6275.12,0.000302,15]
[341197352,1730615438539,-150.01,0.00030408,2]
[341197353,1730615438548,-713.98088255,0.00030408,2]
[341197354,1730615438557,-500.0,0.00030408,4]
[341197355,1730615438567,-500.0,0.0003041,4]
[341197356,1730615438576,-500.0,0.0003041,4]
[341197357,1730615438586,-964.33,0.0003041,4]
[341197358,1730615438596,-500.0,0.0003041,4]
[341197359,1730615438605,-500.0,0.0003041,4]
[341197360,1730615438615,-500.0,0.0003041,4]
[341197361,1730615438624,-1478.39,0.0003041,4]
[341197362,1730615438634,-500.0,0.0003041,4]
[341197363,1730615438644,-14479.93,0.0003041,3]
[341197364,1730615438653,-500.0,0.0003041,4]
[341197365,1730615438663,-170.30388579,0.0003041,7]
[341197366,1730615438672,-303.1683464,0.00030493,2]
[341197367,1730615438681,-500.0,0.00030682,4]
[341197368,1730615438691,-3175.99968604,0.00030684,2]
[341197369,1730615438700,-500.0,0.00030684,4]
[341197370,1730615438709,-500.0,0.00030684,4]
[341197371,1730615438719,-964.33,0.00030684,4]
[341197372,1730615438728,-365.87232589,0.00030684,4]
[341197373,1730615438738,-500.0,0.00030684,4]
[341197374,1730615438747,-500.0,0.00030684,4]
[341197375,1730615438758,-1478.39,0.00030684,4]
[341197376,1730615438768,-500.0,0.00030684,4]
[341197377,1730615438777,-14479.93,0.00030684,3]
[341197378,1730615438786,-500.0,0.00030684,4]
[341197379,1730615438796,-500.0,0.00030956,4]
[341197380,1730615438805,-500.0,0.00030958,4]
[341197381,1730615438814,-500.0,0.00030958,4]
[341197382,1730615438823,-964.33,0.00030958,4]
[341197383,1730615438834,-500.0,0.00030958,4]
[341197384,1730615438843,-500.0,0.00030958,4]
[341197385,1730615438852,-1478.39,0.00030958,4]
[341197386,1730615438861,-500.0,0.00030958,4]
[341197387,1730615438871,-14479.93,0.00030958,3]
[341197388,1730615438880,-275.66,0.00030958,4]
[341197389,1730615438890,-14087.24,0.00031222,10]
[341197390,1730615438899,-500.0,0.0003123,4]
[341197391,1730615438908,-500.0,0.00031231,2]
[341197392,1730615438918,-500.0,0.00031232,4]
[341197393,1730615438927,-151.0,0.00031232,7]
[341197394,1730615438936,-151.0,0.00031232,7]
[341197395,1730615438946,-500.0,0.00031232,4]
[341197396,1730615438955,-151.0,0.00031232,7]
[341197397,1730615438964,-964.33,0.00031232,4]
[341197398,1730615438974,-151.0,0.00031232,7]
[341197399,1730615438983,-153.457654,0.00031232,7]
[341197400,1730615438993,-1478.39,0.00031232,4]
[341197401,1730615439002,-500.0,0.00031232,4]
[341197402,1730615439011,-14479.93,0.00031232,3]
[341197403,1730615439021,-367.0125242,0.00031315,2]
[341197404,1730615439030,-151.0,0.00031425,120]
[341197405,1730615439039,-500.0,0.00031504,4]
[341197406,1730615439052,-500.0,0.00031506,4]
[341197407,1730615439061,-500.0,0.00031506,4]
[341197408,1730615439071,-151.0,0.00031506,7]
[341197409,1730615439080,-151.0,0.00031506,3]
[341197410,1730615439089,-964.33,0.00031506,4]
[341197411,1730615439098,-1478.39,0.00031506,4]
[341197412,1730615439109,-500.0,0.00031506,4]
[341197413,1730615439119,-14479.93,0.00031506,3]
[341197414,1730615439128,-570.5534359,0.0003173,2]
[341197415,1730615439138,-151.0,0.00031778,7]
[341197416,1730615439147,-500.0,0.00031778,4]
[341197417,1730615439156,-500.0,0.0003178,4]
[341197418,1730615439166,-500.0,0.0003178,4]
[341197419,1730615439175,-151.0,0.0003178,7]
[341197420,1730615439185,-153.301306,0.0003178,7]
[341197421,1730615439194,-964.33,0.0003178,4]
[341197422,1730615439203,-153.224457,0.0003178,7]
[341197423,1730615439212,-1478.39,0.0003178,4]
[341197424,1730615439222,-500.0,0.0003178,4]
[341197425,1730615439232,-10149.66493862,0.0003178,3]
[341197439,1730615440366,-4330.26506138,0.0003178,3]
[341197440,1730615440375,-498.18,0.00031882,2]
[341197441,1730615440385,-2394.0,0.00031882,2]
[341197442,1730615440394,-1140.0,0.00031882,2]
[341197443,1730615440403,-151.0,0.00031882,7]
[341197444,1730615440412,-151.0,0.00031882,7]
[341197445,1730615440421,-151.0,0.00031882,7]
[341197446,1730615440431,-151.0,0.00031882,3]
[341197447,1730615440440,-226.0085,0.00031923,2]
[341197448,1730615440449,-500.0,0.00032052,4]
[341197449,1730615440458,-151.0,0.00032053,7]
[341197450,1730615440468,-500.0,0.00032054,4]
[341197451,1730615440478,-500.0,0.00032054,4]
[341197452,1730615440488,-964.33,0.00032054,4]
[341197453,1730615440497,-1478.39,0.00032054,4]
[341197454,1730615440508,-500.0,0.00032054,4]
[341197455,1730615440517,-14479.93,0.00032054,3]
[341197456,1730615440527,-500.0,0.00032326,4]
[341197457,1730615440536,-500.0,0.00032328,4]
[341197458,1730615440547,-151.0,0.00032328,7]
[341197459,1730615440556,-156.009005,0.00032328,7]
[341197460,1730615440566,-500.0,0.00032328,4]
[341197461,1730615440575,-162.998315,0.00032328,7]
[341197462,1730615440584,-151.0,0.00032328,7]
[341197463,1730615440597,-179.099468,0.00032328,3]
[341197464,1730615440607,-964.33,0.00032328,4]
[341197465,1730615440617,-1478.39,0.00032328,4]
[341197466,1730615440626,-500.0,0.00032328,4]
[341197467,1730615440635,-14479.93,0.00032328,3]
[341197468,1730615440645,-500.0,0.000326,4]
[341197469,1730615440654,-160.354551,0.00032601,7]
[341197470,1730615440664,-500.0,0.00032602,4]
[341197471,1730615440674,-500.0,0.00032602,4]
[341197472,1730615440684,-964.33,0.00032602,4]
[341197473,1730615440693,-1478.39,0.00032602,4]
[341197474,1730615440702,-500.0,0.00032602,4]
[341197475,1730615440711,-13700.47330801,0.00032602,3]
[341197490,1730615446291,-779.45669199,0.00032602,3]
[341197491,1730615446302,-157.276778,0.000327,12]
[341197492,1730615446311,-223.21090341,0.00032776,2]
[341197500,1730615629526,188.0,0.00033404,30]
[341197531,1730616551143,-150.0,0.00024658,2]
[341197532,1730616551167,-157.0,0.00025,2]
[341197533,1730616551187,-194.0,0.00027,2]
[341197534,1730616551207,-166.433038,0.00027332,2]
[341197535,1730616551230,-329.5137459,0.00027541,2]
[341197536,1730616551253,-300.0,0.00027617,2]
[341197537,1730616551275,-142.74216664,0.00027617,2]
[341197605,1730616632518,-150.84293585,0.00024658,2]
[341197607,1730616632528,-454.36370906,0.00027369,4]
[341197609,1730616632537,-300.0,0.00027617,2]
[341197611,1730616632547,-300.0,0.00027617,2]
[341197613,1730616632560,-3725.95973582,0.00027618,2]
[341197615,1730616632572,-6241.91020788,0.00027618,2]
[341197617,1730616632582,-158.47434188,0.00027643,6]
[341197619,1730616632591,-191.7449065,0.00027647,2]
[341197622,1730616632605,-1346.5,0.00027757,2]
[341197624,1730616632616,-182.44873,0.00027966,2]
[341197627,1730616632626,-3000.0,0.00027992,2]
[341197629,1730616632638,-166.433038,0.00028017,2]
[341197631,1730616632648,-153.0,0.00028373,2]
[341197633,1730616632659,-153.0,0.00028373,2]
[341197635,1730616632669,-153.0,0.00028373,2]
[341197637,1730616632679,-166.433038,0.00028702,2]
[341197640,1730616632690,-195.0,0.00028767,2]
[341197642,1730616632700,-420.0,0.00029838,2]
[341197644,1730616632710,-151.0,0.0003,120]
[341197646,1730616632722,-151.0,0.0003,120]
[341197648,1730616632732,-348.0,0.0003,2]
[341197650,1730616632743,-173.48681592,0.00030036,2]
[341197652,1730616632752,-765.18438008,0.00030036,2]
[341197654,1730616632763,-500.0,0.00030135,2]
[341197656,1730616632773,-634.27860436,0.00030135,2]
[341197658,1730616632783,-159.811,0.00030135,25]
[341197661,1730616632792,-498.97080197,0.00030136,4]
[341197663,1730616632803,-504.76261566,0.00030136,4]
[341197664,1730616632812,-504.51066617,0.00030136,4]
[341197665,1730616632823,-500.0,0.00030136,4]
[341197666,1730616632833,-517.1679727,0.00030136,4]
[341197667,1730616632842,-520.83094618,0.00030136,4]
[341197668,1730616632851,-509.1229654,0.00030136,4]
[341197669,1730616632860,-509.44975255,0.00030136,4]
[341197670,1730616632869,-507.53083917,0.00030136,4]
[341197671,1730616632878,-511.087469,0.00030136,4]
[341197672,1730616632889,-510.8902908,0.00030136,4]
[341197674,1730616632900,-513.56894973,0.00030136,4]
[341197676,1730616632912,-510.2450405,0.00030136,4]
[341197678,1730616632922,-500.0,0.00030136,4]
[341197680,1730616632933,-508.90372085,0.00030136,4]
[341197682,1730616632943,-510.61831294,0.00030136,4]
[341197684,1730616632952,-152.42728556,0.00030136,4]
[341197686,1730616632963,-500.0,0.00030136,4]
[341197688,1730616632974,-534.46350476,0.00030136,4]
[341197691,1730616632986,-505.98665342,0.00030136,4]
[341197693,1730616632996,-500.0,0.00030136,4]
[341197695,1730616633006,-521.33099817,0.00030136,4]
[341197697,1730616633017,-510.46122649,0.00030136,4]
[341197699,1730616633028,-511.95879681,0.00030136,4]
[341197701,1730616633037,-512.3132102,0.00030136,4]
[341197703,1730616633048,-365.17050315,0.00030136,4]
[341197705,1730616633057,-276.89,0.00030136,4]
[341197707,1730616633067,-500.0,0.00030136,4]
[341197709,1730616633076,-502.98257893,0.00030136,4]
[341197711,1730616633086,-518.63980509,0.00030136,4]
[341197713,1730616633095,-549.06758563,0.00030136,4]
[341197715,1730616633104,-500.0,0.00030136,4]
[341197717,1730616633114,-500.0,0.00030136,4]
[341197719,1730616633124,-502.01938652,0.00030136,4]
[341197721,1730616633133,-500.0,0.00030136,4]
[341197723,1730616633143,-1161.54,0.00030136,4]
[341197725,1730616633152,-603.9,0.00030136,4]
[341197727,1730616633162,-1090.53,0.00030136,4]
[341197729,1730616633172,-371.32708465,0.00030136,4]
[341197731,1730616633181,-500.0,0.00030136,4]
[341197733,1730616633191,-160.53461294,0.00030136,4]
[341197735,1730616633200,-469.78183125,0.00030136,4]
[341197737,1730616633209,-500.0,0.00030136,4]
[341197739,1730616633220,-500.0,0.00030136,4]
[341197741,1730616633229,-1217.07,0.00030136,4]
[341197743,1730616633239,-500.0,0.00030136,4]
[341197745,1730616633248,-501.74,0.00030136,4]
[341197747,1730616633257,-508.31151389,0.00030136,4]
[341197749,1730616633267,-10800.93,0.00030136,3]
[341197751,1730616633276,-504.11371828,0.00030136,4]
[341197753,1730616633285,-166.907267,0.00030362,2]
[341197756,1730616633298,-201.788758,0.00030362,2]
[341197758,1730616633307,-420.0,0.00030379,2]
[341197760,1730616633317,-160.91201938,0.0003041,4]
[341197761,1730616633326,-500.0,0.0003041,4]
[341197763,1730616633335,-424.67033323,0.0003041,4]
[341197765,1730616633345,-500.0,0.0003041,4]
[341197766,1730616633354,-500.0,0.0003041,4]
[341197767,1730616633363,-500.0,0.0003041,4]
[341197768,1730616633373,-1161.54,0.0003041,4]
[341197769,1730616633382,-603.9,0.0003041,4]
[341197770,1730616633392,-1090.53,0.0003041,4]
[341197771,1730616633401,-500.0,0.0003041,4]
[341197772,1730616633410,-500.0,0.0003041,4]
[341197773,1730616633420,-500.0,0.0003041,4]
[341197774,1730616633429,-1217.07,0.0003041,4]
[341197775,1730616633438,-500.0,0.0003041,4]
[341197776,1730616633448,-501.74,0.0003041,4]
[341197777,1730616633457,-10800.93,0.0003041,3]
[341197778,1730616633468,-500.0,0.00030684,4]
[341197779,1730616633477,-209.63450015,0.00030684,4]
[341197780,1730616633486,-500.0,0.00030684,4]
[341197781,1730616633495,-500.0,0.00030684,4]
[341197782,1730616633504,-1161.54,0.00030684,4]
[341197783,1730616633514,-603.9,0.00030684,4]
[341197784,1730616633523,-1090.53,0.00030684,4]
[341197785,1730616633533,-500.0,0.00030684,4]
[341197786,1730616633543,-500.0,0.00030684,4]
[341197787,1730616633555,-500.0,0.00030684,4]
[341197788,1730616633565,-1217.07,0.00030684,4]
[341197789,1730616633574,-500.0,0.00030684,4]
[341197790,1730616633583,-501.74,0.00030684,4]
[341197791,1730616633595,-9365.1075375,0.00030684,3]
[341197811,1730616638837,-1435.8224625,0.00030684,3]
[341197812,1730616638849,-500.0,0.00030705,2]
[341197813,1730616638859,-500.0,0.00030705,2]
[341197814,1730616638868,-166.907267,0.00030741,2]
[341197815,1730616638879,-201.788758,0.00030741,2]
[341197816,1730616638888,-765.18438007,0.00030858,2]
[341197817,1730616638899,-3000.0,0.000309,6]
[341197818,1730616638909,-469.19762678,0.0003091,6]
[341197904,1730616972533,161.039887,0.00013973,2]
[341197910,1730617750152,-820.78,0.00026,2]
[341197931,1730617839119,-158.09841217,0.0002999,2]
[341197932,1730617839135,-400.0,0.00030135,2]
[341197933,1730617839146,-505.35101053,0.00030136,4]
[341197934,1730617839157,-638.37470661,0.00030136,4]
[341197935,1730617839168,-509.28849811,0.00030136,4]
[341197936,1730617839178,-554.95787433,0.00030136,4]
[341197937,1730617839188,-506.88656832,0.00030136,4]
[341197938,1730617839199,-500.0,0.00030136,4]
[341197939,1730617839211,-553.89466187,0.00030136,4]
[341197940,1730617839221,-503.67275576,0.00030136,4]
[341197941,1730617839232,-500.0,0.00030409,4]
[341197942,1730617839242,-500.0,0.00030409,4]
[341197943,1730617839251,-500.0,0.0003041,4]
[341197944,1730617839261,-3604.280272,0.00030431,2]
[341197945,1730617839271,-500.0,0.00030681,4]
[341197946,1730617839281,-500.0,0.00030681,4]
[341197947,1730617839291,-1064.93,0.00030681,4]
[341197948,1730617839302,-9977.09,0.00030681,3]
[341197949,1730617839311,-518.66489615,0.00030682,4]
[341197950,1730617839320,-508.07291972,0.00030682,4]
[341197951,1730617839330,-500.62986783,0.00030682,4]
[341197952,1730617839341,-1016.34,0.00030682,4]
[341197953,1730617839350,-508.84288948,0.00030682,4]
[341197954,1730617839359,-320.03631711,0.00030682,4]
[341197955,1730617839370,-538.86129534,0.00030682,4]
[341197956,1730617839379,-504.862185,0.00030682,4]
[341197957,1730617839388,-511.67327333,0.00030682,4]
[341197958,1730617839397,-163.45269735,0.00030682,4]
[341197959,1730617839406,-197.28366096,0.00030682,4]
[341197960,1730617839416,-500.0,0.00030682,4]
[341197961,1730617839425,-1013.27162951,0.00030682,4]
[341197962,1730617839436,-500.0,0.00030682,4]
[341197963,1730617839447,-525.50932013,0.00030682,4]
[341197964,1730617839457,-500.0,0.00030682,4]
[341197965,1730617839467,-500.0,0.00030682,4]
[341197966,1730617839478,-500.0,0.00030682,4]
[341197967,1730617839490,-506.85483825,0.00030682,4]
[341197968,1730617839500,-500.0,0.00030682,4]
[341197969,1730617839509,-616.08,0.00030682,4]
[341197970,1730617839520,-469.91013683,0.00030682,4]
[341197971,1730617839529,-954.22,0.00030682,4]
[341197972,1730617839539,-500.0,0.00030682,4]
[341197973,1730617839553,-155.549,0.00030683,27]
[341197974,1730617839564,-500.0,0.00030683,4]
[341197975,1730617839576,-500.0,0.00030683,4]
[341197976,1730617839586,-173.48681592,0.00030829,2]
[341197977,1730617839598,-255.06146003,0.0003085,2]
[341197978,1730617839609,-3000.0,0.000309,6]
[341197979,1730617839620,-3000.0,0.0003091,6]
[341197980,1730617839630,-184.31586269,0.0003091,7]
[341197981,1730617839640,-3000.0,0.0003092,6]
[341197982,1730617839650,-500.0,0.00030929,2]
[341197983,1730617839661,-3000.0,0.0003093,6]
[341197984,1730617839672,-3000.0,0.0003094,6]
[341197985,1730617839682,-1560.95949079,0.0003095,6]
[341197988,1730617840814,-1354.55067164,0.0003095,6]
[341197990,1730617843878,-84.48983757,0.0003095,6]
[341197991,1730617843888,-500.0,0.00030955,4]
[341197992,1730617843898,-500.0,0.00030955,4]
[341197993,1730617843907,-1064.93,0.00030955,4]
[341197994,1730617843917,-9977.09,0.00030955,3]